Cogmind - Beta 16 @@@ ROGUE MODE // 2025.10.23 @ 14:55:40 Player: winnking222 Result: Destroyed by S-10 Pest with Light Assault Rifle Performance ------------- Evolutions (0) 0 Regions Visited (2) 400 Robots Destroyed (21) 105 Value Destroyed (607) 607 Prototype IDs (12) 240 Alien Tech Used (0) 0 Bonus (0) 0 TOTAL SCORE: 1352 Bonus ------- None Cogmind --------- Core Integrity 0/250 Matter 201/300 Energy 100/100 System Corruption 0% Temperature Cool (0) Movement Treading (160) Location -10/Subcaves Parts ------- > --- POWER (1) -------- Subdweller Power Source > --- PROPULSION (2) --- Light Treads Light Treads > --- UTILITY (2) ------ Large Storage Unit Light Armor Plating > --- WEAPON (2) ------- Makeshift Laser Battle Rifle > --- INVENTORY (15) --- Subdweller Power Source Aluminum Leg Aluminum Leg Compact Wheel Subdweller Monowheel Disposable Heat Sink Seismic Detector Seismic Detector Scrap Shield Makeshift System Restoration Module Rainbow Chip Subdweller Laser Assault Rifle Grenade Launcher Peak State ------------ > --- POWER ------------ Subdweller Power Source > --- PROPULSION ------- Light Treads Compact Wheel > --- UTILITY ---------- Large Storage Unit Seismic Detector > --- WEAPON ----------- Makeshift Laser Barrage Gun > --- INVENTORY -------- Subdweller Power Source Light Treads Light Treads Aluminum Leg Aluminum Leg Compact Wheel Seismic Detector Light Armor Plating Scrap Shield Makeshift System Restoration Module Rainbow Chip Assault Rifle Grenade Launcher [Rating: 16] Favorites ----------- Power Ion Engine Engine Ion Engine Propulsion Light Treads Treads Light Treads Wheel Compact Wheel Utility Large Storage Unit Device Seismic Detector Storage Large Storage Unit Protection Light Armor Plating Weapon Light Assault Rifle Energy Gun Makeshift Laser Ballistic Gun Light Assault Rifle Launcher Grenade Launcher Build | -11 -10 -10 ------- Run | Yrd Mat Sub Slots Evolved . | . . . Power . | . . . Propulsion . | . . . Utility . | . . . Weapon . | . . . Parts Attached 29 | 7 7 15 Power 6 | 1 2 3 Engine 6 | 1 2 3 Core . | . . . Reactor . | . . . Propulsion 7 | 2 1 4 Treads 6 | 2 1 3 Leg . | . . . Wheel 1 | . . 1 Hover . | . . . Flight . | . . . Utility 8 | 2 4 2 Device 3 | 1 1 1 Storage 2 | 1 1 . Processor . | . . . Hackware . | . . . Protection 3 | . 2 1 Artifact . | . . . Weapon 8 | 2 . 6 Energy Gun 2 | . . 2 Energy Cannon . | . . . Ballistic Gun 5 | 2 . 3 Ballistic Cannon . | . . . Launcher 1 | . . 1 Special Weapon . | . . . Impact Weapon . | . . . Slashing Weapon . | . . . Piercing Weapon . | . . . Special Melee Weapon . | . . . Unidentified Prototypes . | . . . Parts Lost 8 | . 2 6 Power 2 | . 1 1 Propulsion 3 | . . 3 Utility 2 | . 1 1 Weapon 1 | . . 1 Highest Loss Streak 3 | . 1 3 To Critical Strikes . | . . . Average Backups 13 | 5 13 13 Power . | . 1 . Propulsion 5 | 3 5 4 Utility 4 | . 3 4 Weapon 3 | 1 3 3 Tool/Special . | . . . Unused Backups 14 | . 3 11 Power 1 | . 1 . Propulsion 5 | . 1 4 Utility 4 | . . 4 Weapon 4 | . 1 3 Tool/Special . | . . . Average Slot Usage (%) 99 | . 99 99 Engine 13 | . 13 14 Treads 24 | . 28 21 Wheel 3 | . . 6 Device 9 | . 11 8 Storage 14 | . 14 14 Protection 4 | . 2 5 Energy Gun 6 | . . 11 Ballistic Gun 21 | . 28 16 Peak Build Rating 16 | 7 8 16 Average Rating 10 | 4 7 12 On Entrance 5 | . 7 8 Avg Prop Armor Cover (%) 13 | . . 13 Naked Turns . | . . . Heaviest Build 33 | 11 30 33 Greatest Support 40 | 40 40 40 Greatest Overweight (x) 1 | . . 1 Average Overweight (x) . | . . . Largest Inventory Capacity 15 | 8 15 15 Average Capacity 14 | 7 14 15 Most Carried 15 | 8 15 15 Average Carried 13 | 5 13 14 Final Capacity 15 | 8 15 15 Final Carried 15 | 7 15 15 Class Distribution -------------------- 85% | Mutant 14% | Scavenger-Mutant Dominant Class ---------------- Mutant | -10/Materials Mutant | -10/Subcaves Resources | -11 -10 -10 ----------- Run | Yrd Mat Sub Matter Collected 733 | 278 242 213 Remotely . | . . . Salvage Created 716 | 55 404 257 Parts 43 | 5 27 11 Haulers Intercepted 1 | . 1 . Recyclers Shooed . | . . . Parts Field Recycled . | . . . Retrieved Matter . | . . . Parts Self-Destructed 9 | . . 9 Prevented . | . . . Parts Restored . | . . . Kills | -11 -10 -10 ------- Run | Yrd Mat Sub Combat Hostiles Destroyed 17 | . 10 7 Guns 15 | . 10 5 AOE 2 | . . 2 Classes Destroyed 6 | 1 4 1 Tunneler 2 | 2 . . Hauler 1 | . 1 . Watcher 1 | . 1 . Swarmer 3 | . 3 . Grunt 9 | . 7 2 Subdweller 5 | . . 5 Best Kill Streak 3 | 2 3 2 Combat Bots Only 3 | . 3 2 Max Kills in Single Turn 1 | 1 1 1 Gunslinging . | . . . Exploded 1 | . . 1 Melee . | . . . Uniques/NPCs Destroyed . | . . . Combat | -11 -10 -10 -------- Run | Yrd Mat Sub Hostile Shots Fired 111 | . 57 54 Missed 26 | . 11 15 Hits 85 | . 46 39 Projectile 85 | . 46 39 Critical Strikes 2 | . 1 1 Damage Taken 1401 | . 533 868 Core 252 | . 95 157 Absorbed by Shields . | . . . Core Remaining (%) 100 | 100 . . Volleys Fired 128 | 4 61 63 Largest 2 | 2 2 2 Hottest 178 | 40 40 178 Shots Fired 231 | 8 122 101 Gun 229 | 8 122 99 Cannon . | . . . Launcher 2 | . . 2 Special . | . . . Kinetic 191 | 8 122 61 Thermal 38 | . . 38 Explosive 2 | . . 2 Electromagnetic . | . . . Robot Hit Streak 14 | 3 7 14 Robot Miss Streak 4 | 1 4 2 Penetration Max . | . . . Secondary Targets 1 | . 1 . Max Gunslinging Chain 1 | . 1 . Shots Hit Robots 127 | 5 69 53 Core Hits 53 | 3 31 19 Critical Kills 1 | . 1 . Critical Parts Destroyed 1 | . 1 . Critical Strikes 6 | . 2 4 Burn 3 | . . 3 Destroy 3 | . 2 1 Melee Attacks . | . . . Impact . | . . . Slashing . | . . . Piercing . | . . . Sneak Attacks . | . . . Combat Hostiles . | . . . Follow-up Attacks . | . . . Damage Inflicted 1321 | 44 592 685 Guns 1171 | 44 579 548 Cannons . | . . . Explosions 137 | . . 137 Melee . | . . . Ramming 13 | . 13 . Kinetic 1016 | 44 579 393 Thermal 155 | . . 155 Explosive 137 | . . 137 Electromagnetic . | . . . Impact . | . . . Slashing . | . . . Piercing . | . . . Highest Corruption . | . . . Average Corruption . | . . . Corruption Purged . | . . . Corruption Blocked . | . . . Overload Shots 14 | . . 14 Effects 3 | . . 3 Energy Bleed 3 | . . 3 Overflow Damage . | . . . Projectiles . | . . . Explosions . | . . . Melee . | . . . Knockbacks 1 | . 1 . Impact 1 | . 1 . Kinetic . | . . . Secondary . | . . . Self-Inflicted Damage . | . . . Shots . | . . . Rammed 3 | . 3 . Targets Rammed 3 | . 3 . Kicked . | . . . Crushed . | . . . Highest Temperature 187 | . 55 187 Average Temperature 35 | . 17 67 Received Heat Transfer 504 | . 261 243 Siege Activations . | . . . Martial Activations . | . . . Shielding Activations . | . . . Robots Disrupted . | . . . Combat Hostiles . | . . . Robots Corrupted . | . . . Combat Hostiles . | . . . Parts Fried . | . . . Impact Corruptions . | . . . Robots Melted . | . . . Combat Hostiles . | . . . Parts Melted 2 | . . 2 Heat Transferred 557 | . . 557 Parts Sabotaged . | . . . Parts Stolen . | . . . Parts Stripped . | . . . Power Chain Reactions . | . . . Alert | -11 -10 -10 ------- Run | Yrd Mat Sub Maximum Alert Level . | . . . Low Security (%) 100 | 100 100 . Level 1 . | . . . Level 2 . | . . . Level 3 . | . . . Level 4 . | . . . Level 5 . | . . . High Security . | . . . Max Security . | . . . Peak Influence 60 | 5 60 . Initial . | . . . Average 8 | . 8 . Influence Increases 330 | 10 270 50 Destroy 0b10 Robot/C 240 | . 200 40 Destroy 0b10 Robot/NC 20 | 10 10 . Destroy Leader 54 | . 44 10 Successful Hack 16 | . 16 . Influence Decreases 330 | 10 254 66 Entered New Map 8 | . . 8 Time Decay 302 | 10 234 58 Lost Part 20 | . 20 . Squads Dispatched 2 | . 2 . Investigation 2 | . 2 . Extermination . | . . . Reinforcement . | . . . Assault . | . . . Garrison . | . . . Intercept . | . . . Searches Triggered . | . . . Construction Impeded . | . . . Haulers Reinforced . | . . . Active Scanning Responses . | . . . Cargo Convoy Interrupts . | . . . Stealth | -11 -10 -10 --------- Run | Yrd Mat Sub Distress Signals 1 | . 1 . Communications Jammed . | . . . Distress Signals . | . . . Times Spotted 32 | . 19 13 Peak Tracking Total 3 | . 3 2 Tactical Retreats . | . . . Traps | -11 -10 -10 ------- Run | Yrd Mat Sub Traps Triggered 4 | . 1 3 Indirectly . | . . . Trap Hack Attempts . | . . . Triggered . | . . . Disarmed . | . . . Reprogrammed . | . . . Reused . | . . . Traps Extracted . | . . . Installed . | . . . Triggered . | . . . Machines | -11 -10 -10 ---------- Run | Yrd Mat Sub Machines Disabled 1 | . . 1 Max in Single Turn 1 | . . 1 Machines Repaired . | . . . Machines Dismantled . | . . . Machines Sabotaged . | . . . Overloaded Fab Kills . | . . . Hacking | -11 -10 -10 --------- Run | Yrd Mat Sub Machines Accessed 9 | . 8 1 Terminals 8 | . 8 . Fabricators . | . . . Repair Stations . | . . . Recycling Units . | . . . Scanalyzers . | . . . Garrison Access . | . . . Total Hacks 24 | . 23 1 Successful 13 | . 12 1 Failed 11 | . 11 . Catastrophic . | . . . Database Lockouts . | . . . Manual 23 | . 23 . Terminals 23 | . 23 . Fabricators . | . . . Repair Stations . | . . . Recycling Units . | . . . Scanalyzers . | . . . Garrison Access . | . . . Terminal Hacks 1 | . . 1 Proto ID Catalog 1 | . . 1 Fabricator Hacks . | . . . Repair Station Hacks . | . . . Recycling Unit Hacks . | . . . Scanalyzer . | . . . Garrison Access Hacks . | . . . Unauthorized Hacks 12 | . 12 . Terminals 12 | . 12 . Assimilate 1 | . 1 . Botnet 5 | . 5 . Skim 6 | . 6 . Fabricators . | . . . Repair Stations . | . . . Recycling Units . | . . . Scanalyzers . | . . . Garrison Access . | . . . Data Cores Recovered . | . . . Used . | . . . Hacking Detections 6 | . 6 . Full Trace Events 1 | . 1 . Feedback Events . | . . . Feedback Blocked . | . . . Robot Schematics Acquired . | . . . Robots Built . | . . . Authchips . | . . . Time . | . . . Total Robot Build Rating . | . . . Part Schematics Acquired . | . . . Parts Built . | . . . Authchips . | . . . Time . | . . . Total Part Build Rating . | . . . Part Studies Acquired . | . . . Parts Repaired . | . . . Time . | . . . Parts Recycled . | . . . Recycled Matter . | . . . Retrieved Matter . | . . . Retrieved Components . | . . . Parts Scanalyzed . | . . . Part Schematics Acquired . | . . . Parts Damaged . | . . . Bothacking | -11 -10 -10 ------------ Run | Yrd Mat Sub Used RIF Installer . | . . . Robots Hacked . | . . . Non-combat . | . . . Combat . | . . . Robot Hacks Applied . | . . . Relay Couplers Released . | . . . Fabnet Peak Effective % . | . . . Robots Rewired . | . . . Allies Hacked . | . . . Hacks Repelled . | . . . Allies | -11 -10 -10 -------- Run | Yrd Mat Sub Total Allies . | . . . Largest Group . | . . . Highest-Rated Group . | . . . Highest-Rated Ally . | . . . Total Orders . | . . . Ally Attacks . | . . . Total Damage . | . . . Kills . | . . . Allies Corrupted . | . . . Allies Melted . | . . . Intel | -11 -10 -10 ------- Run | Yrd Mat Sub Active Infowar (turns) 2811 | 20 1501 1290 Seismic 2811 | 20 1501 1290 Robot Analysis Total . | . . . Derelict Logs Recovered 2 | . . 2 Drone Launches . | . . . Drone Recoveries . | . . . Exploration | -11 -10 -10 ------------- Run | Yrd Mat Sub Turns Passed 4131 | 99 1797 2235 Spaces Moved 1911 | 49 826 1036 Core 8 | 8 . . Treads 1199 | 41 826 332 Legs . | . . . Wheels 704 | . . 704 Hover . | . . . Flight . | . . . Fastest Speed 50 | 50 160 115 Average Speed 143 | 142 160 130 Slowest Speed 240 | 160 160 240 Overloaded Moves . | . . . Propulsion Burnouts . | . . . Robots Hopped . | . . . Potential Cave-ins . | . . . Cave-ins Triggered . | . . . Exploration Rate (%) 55 | 4 98 63 Regions Visited 2 Branch Regions 1 Pre-discovered Areas 2 | . 1 1 Known Exits Taken . | . . . Unknown Exits Taken 2 | 1 1 . Scrap Searched 4 | . . 4 Spaces Dug 2 | . . 2 Terrain Destroyed 10 | . . 10 Melee . | . . . Projectile 2 | . . 2 AOE 8 | . . 8 Terrain Rammed . | . . . Walls Destroyed . | . . . Machines Disabled . | . . . Actions | -11 -10 -10 --------- Run | Yrd Mat Sub Total 3099 | 72 1202 1825 Wait 964 | . 279 685 Move 1909 | 48 825 1036 Hop . | . . . Pick Up 39 | 13 14 12 Fast Attach 1 | 1 . . Attach 16 | 6 2 8 Detach . | . . . Swap 24 | . 11 13 Drop 15 | . 7 8 Fire 128 | 4 61 63 Melee . | . . . Ram . | . . . Kick . | . . . Crush 3 | . 3 . Escape Stasis . | . . . Rewire . | . . . Trap . | . . . Miscellaneous . | . . . Route ------- -11/Scrapyard -10/Materials (discovered 6 exits: [*Mat x3] / [*Min x2] / *Sub) -10/Subcaves History --------- Turn | Location | Event 38 | -11/Scrapyard | Discovered new exit (range 14) 100 | -11/Scrapyard | Entered Materials 185 | -10/Materials | Discovered new exit (range 13) 187 | -10/Materials | Discovered new exit (range 14) 301 | -10/Materials | Build established: Mutant 331 | -10/Materials | Discovered new exit (range 12) 450 | -10/Materials | Discovered new exit (range 8) 750 | -10/Materials | Discovered new exit (range 7) 800 | -10/Materials | Derelicts attacked the area 1303 | -10/Materials | Discovered new exit (range 10) 1539 | -10/Materials | Learned 4 Recycling zone layouts 1559 | -10/Materials | Learned 4 Subcaves zone layouts 1576 | -10/Materials | Learned Materials stockpile data 1897 | -10/Materials | Entered Subcaves 1898 | -10/Subcaves | Approached by a straggling Scientist 2211 | -10/Subcaves | Ambushed by Subdweller buried in earth 2216 | -10/Subcaves | Core integrity fell below 50% 2264 | -10/Subcaves | Lost 3 parts (1p1u1w) 2514 | -10/Subcaves | Build established: Scavenger-Mutant 2640 | -10/Subcaves | Shifting Twisted Machinery released Sub. Shrapnel Launcher 2772 | -10/Subcaves | Visited 4L-MR0's lab 2788 | -10/Subcaves | Found Rainbow Chip 2868 | -10/Subcaves | Learned Materials trap positions 2871 | -10/Subcaves | A swath of the cavern ceiling suddenly collapsed 2999 | -10/Subcaves | A swath of the cavern ceiling suddenly collapsed 3130 | -10/Subcaves | Build established: Mutant 3162 | -10/Subcaves | Ambushed by Subdwellers from Twisted Machinery 3867 | -10/Subcaves | Core integrity fell below 20% 4132 | -10/Subcaves | Destroyed by S-10 Pest with Light Assault Rifle Last Messages --------------- 03170_ 67-SDB(R) suffers critical hit (Burn). 03170_ FH-GY1(R) destroyed. 03173_ 67-SDB(R) suffers critical hit (Burn). 03173_ Sub. Beam Cannon melted. 03173_ Sub. Monowheel melted. 03173_ 67-SDB(R) destroyed. 03175_ Subatomizers dissect the Disposable Heat Sink, destroying it. 03176_ Dropped Broken Sub. Power Source. 03178_ Dropped Barrage Gun. 03184_ Acquired Battle Rifle. 03187_ Acquired Sub. Laser. 03190_ Acquired Sub. Monowheel. 03191_ Acquired 24 matter. 03216_ The unstable cave ceiling collapses. 03293_ Acquired Broken Sub. Power Source. 03428_ Subatomizers dissect the Barrage Gun. 03457_ Subatomizers dissect the Barrage Gun, destroying it. 03703_ Sub. Power Source shoots sparks and powers down. 03870_ RL-MFU(R) destroyed. 03873_ Acquired 49 matter. Map ----- +----------------------------------------------------+ | ## ###"#????????#"#"##????????????????## | | ?# # "#?## #???????#""#"#?????????????????### | | ?####""" "#?##???????##""###??????????????????#### | | ????## #???????????###"###????????????????????? | | ?????## ##????????????# "#"#????????????????????? | | ???#######?????????????##"""#????????????????????? | | ???# ## #????????###????#"###????????????????????? | | ???# #????????# ###??##"#?????????????????????? | | ??## ##???????# #?##""#?????????????????????? | | ?## ###?????# #?#"#"##????????????????????? | | ## ## #?????# #?##""###???????????????????? | | ### [ #?????## "#####&""#???????????????????? | | #### ##??????###"####"###???????????????????? | | #?####??????####"#"#"& #????????????????????? | | # ##??????????#"""""""""##????????????????????? | | ## ##?????????##"#""#""""#????????????????????? | | ?## #??????????#"#####"""#????????????????????? | | ??# #?????????###"""#"""###???????????????????? | | #?## ##??###??## ""###"""#"#???????????????????? | | ##?# #### ####"###""#%"#"##???????????????????? | | #### ##"" ##""#""#"""""""#???????????????????? | | #?## "" ###"##"#;##"#"##???????????????????? | | #### " ### #"""#;"####????????????????????? | | # # # "" "" ######;##???????????????????????? | | "" "#"#????#;;##??????????????????????? | | """ # % ###"#????###@#??????????????????????? | | ## ## #?###????#;s##??????????????????????? | | ####### ##???????#;s#???????????????????????? | | "" #### ###????ss## ???????????????????????? | | "" *%& #???" ?? ???????????????????????? | | "" "" #??#" ???" ??????????????????????? | | " """" #?#"????""?????????????????????## | | ## "##"" ##?#??????##??????????????????### | | ####### """ #?????????????????????????????# | | "#?? """ ????????????????????????????# | | #?## "### #??????????????????????????# | | ### #??#### #?????????????????????????## | | ## #?????? #????????????????????????# | | ##??????? ##????????????????????????# | | ###### #???????? ?????????????????????????# | | #### #?# ### #?????????????## # | | ## #?# ## ##??????????????# # | | #?## ###???????????????# | | #?## #?????????????????## | | # ## ### #??????????????????### | | ######## # ###??????????????????### | | ####??## ### ## #????????????????????# | | ##??# ###### ##??????????????????## | | ##### ##### ##?????????????????# | | #### # #?????????????????# | +----------------------------------------------------+ Best States ------------- Heat Dissipation 25 Energy Generation 15 Energy Capacity 250 Matter Stores 300 Matter Capacity 300 Sight Range 16 Terrain Scan Density 10 Armor Coverage 150 Evasion (%) 50 Recoil Reduction 2 Item Schematics ----------------- None Robot Schematics ------------------ None Fabricated ------------ Nothing Repaired ---------- Nothing Studied --------- None Alien Tech Used ----------------- None Achievements -------------- Mistaken Identity Challenges ------------ None Game ------ Seed WarpSigixScreen Manual? 0 Play Time 00:21:08 Cumulative 198.5 hours Start 2025.10.23 @ 09:19:19 End 2025.10.23 @ 14:55:40 Sessions 2 Manual Loads 0 Difficulty Rogue Special Mode None Game No. 271 Rogue 271 Adventurer 0 Explorer 0 Win Type - Total 3 Types 2/0/0/1/0/0/0/0/0/0 Lore% 73 Gallery% 72 Achievement% 34 Wizard Run 0 Options --------- Layout 0 ASCII 0 Keyboard 0 Movement Mouse Keybinds 0 Fullscreen 1 Font 16/SmallcapsGlow Map View 75x55 Zoom Use 0% Tactical HUD 1 Map Filters NONE Filters NONE Steam 1 RUN: b13d0562-d2cc-4eea-b174-a025c9f1b9ac